[Event "Early-Titled-Tuesday-Blitz-November-28-2023"]
[Site "Chess.com"]
[Date "2023.11.28"]
[Round "6"]
[White "DenLaz"]
[Black "scarabee43"]
[Result "0-1"]
[WhiteElo "3037"]
[BlackElo "2824"]
[TimeControl "180+1"]
[EndTime "9:17:31 PST"]
[Termination "scarabee43 won by resignation"]

1. d4 {[%clk 0:03:00.9]} 1... Nf6 {[%clk 0:02:59.9]} 2. c4 {[%clk 0:03:01.5]}
2... e6 {[%clk 0:03:00.4]} 3. Nf3 {[%clk 0:03:02]} 3... d5 {[%clk 0:03:00.6]} 4.
g3 {[%clk 0:03:02.6]} 4... Be7 {[%clk 0:03:00.2]} 5. Bg2 {[%clk 0:03:03.2]} 5...
O-O {[%clk 0:03:00.5]} 6. O-O {[%clk 0:03:03.7]} 6... c6 {[%clk 0:03:00.1]} 7.
Qc2 {[%clk 0:03:00.8]} 7... Nbd7 {[%clk 0:02:55.3]} 8. Nbd2 {[%clk 0:02:59.9]}
8... b6 {[%clk 0:02:49.3]} 9. e4 {[%clk 0:03:00]} 9... dxe4 {[%clk 0:02:49.8]}
10. Nxe4 {[%clk 0:03:00]} 10... Bb7 {[%clk 0:02:49.1]} 11. Rd1 {[%clk
0:02:58.1]} 11... Nxe4 {[%clk 0:02:46]} 12. Qxe4 {[%clk 0:02:56.6]} 12... Nf6
{[%clk 0:02:46.8]} 13. Qe2 {[%clk 0:02:56.7]} 13... Qc8 {[%clk 0:02:37.5]} 14.
Bf4 {[%clk 0:02:54.4]} 14... Rd8 {[%clk 0:02:36.7]} 15. Rac1 {[%clk 0:02:47.6]}
15... h6 {[%clk 0:02:32.4]} 16. h4 {[%clk 0:02:46]} 16... Bf8 {[%clk 0:02:31.2]}
17. Bh3 {[%clk 0:02:43.3]} 17... Re8 {[%clk 0:02:26]} 18. Ne5 {[%clk 0:02:41]}
18... Nd7 {[%clk 0:02:24]} 19. Rd3 {[%clk 0:02:10.2]} 19... Nxe5 {[%clk
0:02:18.7]} 20. Bxe5 {[%clk 0:02:09.6]} 20... Qd7 {[%clk 0:02:06.9]} 21. c5
{[%clk 0:02:05.6]} 21... Ba6 {[%clk 0:02:06.1]} 22. b4 {[%clk 0:01:43]} 22...
Rad8 {[%clk 0:01:50.6]} 23. Rcd1 {[%clk 0:01:38.4]} 23... bxc5 {[%clk
0:01:47.8]} 24. bxc5 {[%clk 0:01:38]} 24... Bxd3 {[%clk 0:01:37.4]} 25. Rxd3
{[%clk 0:01:36.2]} 25... f6 {[%clk 0:01:14.7]} 26. Bf4 {[%clk 0:01:35]} 26...
Bxc5 {[%clk 0:01:04.9]} 27. Re3 {[%clk 0:01:33.9]} 27... Qxd4 {[%clk 0:01:02.4]}
28. Bxe6+ {[%clk 0:01:30.2]} 28... Kh8 {[%clk 0:00:59]} 29. Qf1 {[%clk
0:00:56.1]} 29... Qd1 {[%clk 0:00:33.7]} 30. Re1 {[%clk 0:00:55.3]} 30... Qf3
{[%clk 0:00:34.2]} 31. Bb3 {[%clk 0:00:31.6]} 31... Rxe1 {[%clk 0:00:15.5]} 32.
Qxe1 {[%clk 0:00:32.5]} 32... Qh5 {[%clk 0:00:10.9]} 33. Kg2 {[%clk 0:00:24.4]}
33... Qe8 {[%clk 0:00:09.9]} 34. Qa5 {[%clk 0:00:12.4]} 34... Bb6 {[%clk
0:00:09.2]} 35. Qf5 {[%clk 0:00:10.6]} 35... Qe2 {[%clk 0:00:08.4]} 36. Bxh6
{[%clk 0:00:08.7]} 36... Qxf2+ {[%clk 0:00:07.6]} 37. Qxf2 {[%clk 0:00:08.7]}
37... Bxf2 {[%clk 0:00:08.4]} 38. Bf4 {[%clk 0:00:08.5]} 38... Bb6 {[%clk
0:00:07.9]} 39. Kf3 {[%clk 0:00:09]} 39... Rd3+ {[%clk 0:00:07.7]} 40. Ke4
{[%clk 0:00:08.9]} 40... Rd8 {[%clk 0:00:06.6]} 41. Kf5 {[%clk 0:00:09.1]} 41...
Kh7 {[%clk 0:00:06.8]} 42. h5 {[%clk 0:00:08.7]} 42... c5 {[%clk 0:00:06.5]} 43.
Bc2 {[%clk 0:00:09]} 43... Kg8 {[%clk 0:00:06.4]} 44. Bb3+ {[%clk 0:00:09]}
44... Kf8 {[%clk 0:00:06.8]} 45. Kg6 {[%clk 0:00:07.9]} 45... Rc8 {[%clk
0:00:06.9]} 46. Bc4 {[%clk 0:00:08.1]} 46... Bc7 {[%clk 0:00:06.8]} 47. Bd2
{[%clk 0:00:03.9]} 47... Bxg3 {[%clk 0:00:06.1]} 48. Be3 {[%clk 0:00:04.5]}
48... Be5 {[%clk 0:00:06.1]} 49. Bf2 {[%clk 0:00:04.9]} 49... Bd4 {[%clk
0:00:06.4]} 50. Bg3 {[%clk 0:00:05.4]} 50... Rd8 {[%clk 0:00:06.9]} 51. Kf5
{[%clk 0:00:05.6]} 51... Be5 {[%clk 0:00:06.9]} 52. Bf2 {[%clk 0:00:06]} 52...
Ke7 {[%clk 0:00:06.4]} 53. Bxc5+ {[%clk 0:00:06.1]} 53... Bd6 {[%clk 0:00:06.9]}
54. Bf2 {[%clk 0:00:04.3]} 54... Rc8 {[%clk 0:00:07.2]} 55. Bb3 {[%clk
0:00:04.7]} 55... Rc3 {[%clk 0:00:07]} 56. Bxa7 {[%clk 0:00:04.4]} 56... Rg3
{[%clk 0:00:07]} 57. Bd1 {[%clk 0:00:02.6]} 57... Rg5+ {[%clk 0:00:07.1]} 58.
Ke4 {[%clk 0:00:03]} 58... Ra5 {[%clk 0:00:07.5]} 59. Bd4 {[%clk 0:00:03.6]}
59... Rxa2 {[%clk 0:00:07.9]} 60. Bb3 {[%clk 0:00:03.7]} 60... Rg2 {[%clk
0:00:07.8]} 61. Bd1 {[%clk 0:00:04.2]} 61... Rg5 {[%clk 0:00:07.9]} 62. Be3
{[%clk 0:00:04.8]} 62... Re5+ {[%clk 0:00:08.1]} 63. Kd3 {[%clk 0:00:05.5]}
63... Bc5 {[%clk 0:00:08.5]} 64. Bf4 {[%clk 0:00:05.9]} 64... Rd5+ {[%clk
0:00:09]} 65. Kc2 {[%clk 0:00:05.1]} 65... Bd6 {[%clk 0:00:09.4]} 66. Be3 {[%clk
0:00:05.4]} 66... f5 {[%clk 0:00:09.8]} 67. Bf3 {[%clk 0:00:05.8]} 67... Ra5
{[%clk 0:00:10.3]} 68. Bd2 {[%clk 0:00:05.3]} 68... Ra2+ {[%clk 0:00:09.6]} 69.
Kd3 {[%clk 0:00:05.8]} 69... Ra3+ {[%clk 0:00:10.1]} 70. Ke2 {[%clk 0:00:05.9]}
70... Kf6 {[%clk 0:00:10.1]} 71. Bc1 {[%clk 0:00:05.6]} 71... Ra2+ {[%clk
0:00:10.2]} 72. Kd3 {[%clk 0:00:05.3]} 72... Ba3 {[%clk 0:00:10.2]} 73. Be3
{[%clk 0:00:05.2]} 73... Bb2 {[%clk 0:00:10.5]} 74. Bb6 {[%clk 0:00:04.6]} 74...
Ra3+ {[%clk 0:00:10.7]} 75. Ke2 {[%clk 0:00:04.8]} 75... Be5 {[%clk 0:00:11.4]}
76. Bd8+ {[%clk 0:00:05.4]} 76... Kf7 {[%clk 0:00:11.7]} 77. Bd5+ {[%clk
0:00:05.5]} 77... Kf8 {[%clk 0:00:11.8]} 78. Bb6 {[%clk 0:00:05.4]} 78... Rh3
{[%clk 0:00:11.5]} 79. Bc5+ {[%clk 0:00:05.6]} 79... Ke8 {[%clk 0:00:12]} 80.
Bf3 {[%clk 0:00:05.9]} 80... Kf7 {[%clk 0:00:11.8]} 81. Bb6 {[%clk 0:00:04.4]}
81... Bf6 {[%clk 0:00:11]} 82. Bd5+ {[%clk 0:00:04.2]} 82... Ke7 {[%clk
0:00:10.2]} 83. Bc5+ {[%clk 0:00:04.8]} 83... Kd7 {[%clk 0:00:10.5]} 84. Bf3
{[%clk 0:00:05.7]} 84... Ke6 {[%clk 0:00:10.4]} 85. Kf2 {[%clk 0:00:05.6]} 85...
Rh4 {[%clk 0:00:10.3]} 86. Kg3 {[%clk 0:00:05.2]} 86... Rc4 {[%clk 0:00:11]} 87.
Bf8 {[%clk 0:00:04.8]} 87... Be5+ {[%clk 0:00:11.1]} 88. Kf2 {[%clk 0:00:05.2]}
88... Kf6 {[%clk 0:00:10.5]} 89. Ba3 {[%clk 0:00:03.8]} 89... Kg5 {[%clk
0:00:10.4]} 90. Be7+ {[%clk 0:00:04]} 90... Bf6 {[%clk 0:00:10.6]} 91. Bd6
{[%clk 0:00:04.6]} 91... Rc2+ {[%clk 0:00:10.5]} 92. Kg3 {[%clk 0:00:03.9]}
92... Rc4 {[%clk 0:00:10.3]} 93. Kg2 {[%clk 0:00:03.3]} 93... f4 {[%clk
0:00:10.4]} 94. Kh3 {[%clk 0:00:02.5]} 94... Rc3 {[%clk 0:00:10.4]} 95. Kg2
{[%clk 0:00:03.1]} 95... Kf5 {[%clk 0:00:08.8]} 96. Bb4 {[%clk 0:00:02.7]} 96...
Rc2+ {[%clk 0:00:08.5]} 97. Kh3 {[%clk 0:00:03.2]} 97... Bd4 {[%clk 0:00:08.7]}
98. Bg4+ {[%clk 0:00:02.2]} 98... Ke5 {[%clk 0:00:08.8]} 99. Bf3 {[%clk
0:00:02.6]} 99... Bf2 {[%clk 0:00:08.6]} 100. Kg4 {[%clk 0:00:03]} 100... Bc5
{[%clk 0:00:07.1]} 101. Ba5 {[%clk 0:00:02.9]} 101... Rc1 {[%clk 0:00:06.3]}
102. Bc7+ {[%clk 0:00:03.2]} 102... Bd6 {[%clk 0:00:06.9]} 103. Bxd6+ {[%clk
0:00:03.3]} 103... Kxd6 {[%clk 0:00:07.4]} 104. Kxf4 {[%clk 0:00:04.2]} 104...
Ke6 {[%clk 0:00:07.3]} 105. Kg5 {[%clk 0:00:04]} 105... Kf7 {[%clk 0:00:05.9]}
106. Bd5+ {[%clk 0:00:04]} 106... Kf8 {[%clk 0:00:06]} 107. Be6 {[%clk
0:00:03.8]} 107... Rg1+ {[%clk 0:00:05.3]} 108. Kf5 {[%clk 0:00:03.5]} 108...
Rf1+ {[%clk 0:00:04.9]} 109. Kg5 {[%clk 0:00:03.8]} 109... Rf6 {[%clk
0:00:05.6]} 110. Bd5 {[%clk 0:00:04]} 110... Ke7 {[%clk 0:00:05.7]} 111. Bc4
{[%clk 0:00:04.5]} 111... Rc6 {[%clk 0:00:05.5]} 112. Bb3 {[%clk 0:00:04.5]}
112... Rb6 {[%clk 0:00:05.5]} 113. Bc4 {[%clk 0:00:04.6]} 113... Kf8 {[%clk
0:00:04.6]} 114. Ba2 {[%clk 0:00:04.7]} 114... Rh6 {[%clk 0:00:04.9]} 115. Bc4
{[%clk 0:00:04.4]} 115... Ke7 {[%clk 0:00:05.5]} 116. Ba2 {[%clk 0:00:04.5]}
116... Kd6 {[%clk 0:00:06]} 117. Bc4 {[%clk 0:00:04.7]} 117... Kc5 {[%clk
0:00:06.5]} 118. Bf7 {[%clk 0:00:05]} 118... Rf6 {[%clk 0:00:05.8]} 119. Bg6
{[%clk 0:00:05]} 119... Rf1 {[%clk 0:00:05.7]} 120. Bf5 {[%clk 0:00:04]} 120...
Rg1+ {[%clk 0:00:05.8]} 121. Kf4 {[%clk 0:00:03.8]} 121... Kd6 {[%clk
0:00:05.6]} 122. Bd3 {[%clk 0:00:03.9]} 122... Ke6 {[%clk 0:00:05.8]} 123. Bc4+
{[%clk 0:00:04.2]} 123... Kf6 {[%clk 0:00:06.3]} 124. Be2 {[%clk 0:00:04.9]}
124... Rg2 {[%clk 0:00:06.2]} 125. Bf3 {[%clk 0:00:05.2]} 125... Ra2 {[%clk
0:00:06.2]} 126. Be4 {[%clk 0:00:05]} 126... Ra4 {[%clk 0:00:06.4]} 127. Ke3
{[%clk 0:00:05]} 127... Kg5 {[%clk 0:00:06]} 128. Bg6 {[%clk 0:00:05.6]} 128...
Ra6 {[%clk 0:00:05.6]} 129. Kf3 {[%clk 0:00:05.6]} 129... Rf6+ {[%clk
0:00:03.7]} 130. Kg3 {[%clk 0:00:06]} 130... Re6 {[%clk 0:00:03.6]} 131. Kf3
{[%clk 0:00:06.4]} 131... Re1 {[%clk 0:00:03.5]} 132. Kg3 {[%clk 0:00:06.7]}
132... Rh1 {[%clk 0:00:03.7]} 133. Kf3 {[%clk 0:00:05.5]} 133... Rxh5 {[%clk
0:00:03.9]} 134. Bxh5 {[%clk 0:00:05.7]} 134... Kxh5 {[%clk 0:00:04.3]} 135. Kf4
{[%clk 0:00:06.6]} 135... Kh4 {[%clk 0:00:04.5]} 136. Kf3 {[%clk 0:00:06.5]}
136... g5 {[%clk 0:00:04.8]} 137. Kg2 {[%clk 0:00:06.9]} 137... Kg4 {[%clk
0:00:05.2]} 138. Kf2 {[%clk 0:00:07.4]} 138... Kh3 {[%clk 0:00:04.9]} 139. Kg1
{[%clk 0:00:07.9]} 139... Kg3 {[%clk 0:00:05.3]} 140. Kh1 {[%clk 0:00:08.3]}
140... g4 {[%clk 0:00:04.8]} 141. Kg1 {[%clk 0:00:08.7]} 141... Kf3 {[%clk
0:00:05.4]} 142. Kh2 {[%clk 0:00:06.7]} 142... Kf2 {[%clk 0:00:02.7]} 143. Kh1
{[%clk 0:00:07.3]} 143... Kg3 {[%clk 0:00:03.2]} 144. Kg1 {[%clk 0:00:08.2]}
144... Kh3 {[%clk 0:00:03.7]} 145. Kh1 {[%clk 0:00:08.6]} 145... g3 {[%clk
0:00:04.3]} 146. Kg1 {[%clk 0:00:09.3]} 146... g2 {[%clk 0:00:05]} 147. Kf2
{[%clk 0:00:10.2]} 147... Kh2 {[%clk 0:00:05.6]} 0-1

[Event "Early-Titled-Tuesday-Blitz-November-28-2023"]
[Site "Chess.com"]
[Date "2023.11.28"]
[Round "7"]
[White "Narek_Ghimoyan"]
[Black "StellarChessPro"]
[Result "1-0"]
[WhiteElo "2322"]
[BlackElo "2519"]
[TimeControl "180+1"]
[EndTime "9:19:38 PST"]
[Termination "Narek_Ghimoyan won by resignation"]

1. e4 {[%clk 0:03:00.9]} 1... g6 {[%clk 0:03:00.9]} 2. d4 {[%clk 0:02:58.8]}
2... Bg7 {[%clk 0:03:01.5]} 3. Nc3 {[%clk 0:02:58]} 3... d6 {[%clk 0:03:01.8]}
4. Be3 {[%clk 0:02:57.4]} 4... a6 {[%clk 0:03:01.9]} 5. a4 {[%clk 0:02:53.3]}
5... Nd7 {[%clk 0:03:02.4]} 6. Qd2 {[%clk 0:02:53.2]} 6... b6 {[%clk 0:03:02.4]}
7. Nf3 {[%clk 0:02:50.3]} 7... Bb7 {[%clk 0:03:03]} 8. Bc4 {[%clk 0:02:50]} 8...
e6 {[%clk 0:03:03.4]} 9. O-O {[%clk 0:02:49.1]} 9... Ne7 {[%clk 0:03:03.8]} 10.
Bh6 {[%clk 0:02:47.3]} 10... O-O {[%clk 0:03:04.1]} 11. Bxg7 {[%clk 0:02:46.8]}
11... Kxg7 {[%clk 0:03:05]} 12. Rad1 {[%clk 0:02:46.2]} 12... h6 {[%clk
0:03:04.2]} 13. Rfe1 {[%clk 0:02:44.8]} 13... g5 {[%clk 0:03:00.8]} 14. h3
{[%clk 0:02:44.9]} 14... Ng6 {[%clk 0:03:00.9]} 15. d5 {[%clk 0:02:41.1]} 15...
e5 {[%clk 0:03:01]} 16. Ne2 {[%clk 0:02:41.1]} 16... Nf6 {[%clk 0:02:55.9]} 17.
Ng3 {[%clk 0:02:40.1]} 17... Nf4 {[%clk 0:02:55.7]} 18. Nf5+ {[%clk 0:02:40.2]}
18... Kg6 {[%clk 0:02:55.5]} 19. g3 {[%clk 0:02:38.9]} 19... Nxh3+ {[%clk
0:02:54.7]} 20. Kg2 {[%clk 0:02:39.1]} 20... Bc8 {[%clk 0:02:51.9]} 21. Kxh3
{[%clk 0:02:34.5]} 21... Nxe4 {[%clk 0:02:50.8]} 22. Nh4+ {[%clk 0:02:28]} 22...
Kh7 {[%clk 0:02:44]} 23. Rxe4 {[%clk 0:02:26.6]} 23... gxh4 {[%clk 0:02:44.1]}
24. Qxh6+ {[%clk 0:02:24.8]} 1-0

[Event "Early-Titled-Tuesday-Blitz-November-28-2023"]
[Site "Chess.com"]
[Date "2023.11.28"]
[Round "7"]
[White "Viacheslav92"]
[Black "Arimin1329"]
[Result "1-0"]
[WhiteElo "2563"]
[BlackElo "2389"]
[TimeControl "180+1"]
[EndTime "9:19:45 PST"]
[Termination "Viacheslav92 won by resignation"]

1. e4 {[%clk 0:03:00.9]} 1... c6 {[%clk 0:02:57.5]} 2. d4 {[%clk 0:02:54.1]}
2... d5 {[%clk 0:02:57.3]} 3. Nc3 {[%clk 0:02:55]} 3... dxe4 {[%clk 0:02:56.4]}
4. Nxe4 {[%clk 0:02:55.9]} 4... Bf5 {[%clk 0:02:56]} 5. Ng3 {[%clk 0:02:56]}
5... Bg6 {[%clk 0:02:56.5]} 6. Nf3 {[%clk 0:02:56.6]} 6... e6 {[%clk 0:02:55.4]}
7. h4 {[%clk 0:02:56.2]} 7... h6 {[%clk 0:02:55.3]} 8. Ne5 {[%clk 0:02:56.8]}
8... Bh7 {[%clk 0:02:55.5]} 9. Qh5 {[%clk 0:02:55.1]} 9... Qc7 {[%clk
0:02:54.5]} 10. Bc4 {[%clk 0:02:54]} 10... Nf6 {[%clk 0:02:53.1]} 11. Qe2 {[%clk
0:02:49.2]} 11... Nd5 {[%clk 0:02:46.8]} 12. O-O {[%clk 0:02:41.8]} 12... Nd7
{[%clk 0:02:45]} 13. Re1 {[%clk 0:02:38.7]} 13... Nxe5 {[%clk 0:02:44.8]} 14.
dxe5 {[%clk 0:02:38.2]} 14... Bc5 {[%clk 0:02:36]} 15. c3 {[%clk 0:02:36.8]}
15... Rd8 {[%clk 0:02:28.4]} 16. Ne4 {[%clk 0:02:33.9]} 16... O-O {[%clk
0:02:20.9]} 17. Nxc5 {[%clk 0:02:32.6]} 1-0

[Event "Early-Titled-Tuesday-Blitz-November-28-2023"]
[Site "Chess.com"]
[Date "2023.11.28"]
[Round "7"]
[White "A-Fier"]
[Black "ahkashefi2800"]
[Result "0-1"]
[WhiteElo "2738"]
[BlackElo "2578"]
[TimeControl "180+1"]
[EndTime "9:20:15 PST"]
[Termination "ahkashefi2800 won by resignation"]

1. Nf3 {[%clk 0:02:59.6]} 1... d5 {[%clk 0:02:58.3]} 2. g3 {[%clk 0:03:00.4]}
2... Nf6 {[%clk 0:02:57.4]} 3. Bg2 {[%clk 0:03:01.3]} 3... c6 {[%clk 0:02:58.2]}
4. O-O {[%clk 0:03:01.2]} 4... Bf5 {[%clk 0:02:58.9]} 5. d3 {[%clk 0:03:01.2]}
5... e6 {[%clk 0:02:58]} 6. Nh4 {[%clk 0:03:00.5]} 6... Bg6 {[%clk 0:02:56.8]}
7. Nxg6 {[%clk 0:02:58.9]} 7... hxg6 {[%clk 0:02:53.7]} 8. Nd2 {[%clk
0:02:59.6]} 8... Nbd7 {[%clk 0:02:53.9]} 9. e4 {[%clk 0:02:59.7]} 9... Bc5
{[%clk 0:02:53.9]} 10. h3 {[%clk 0:02:57.6]} 10... Qc7 {[%clk 0:02:53.6]} 11.
Kh2 {[%clk 0:02:56.9]} 11... Ne5 {[%clk 0:02:40.4]} 12. Nb3 {[%clk 0:02:48.8]}
12... Neg4+ {[%clk 0:02:31.8]} 13. Kh1 {[%clk 0:02:49.1]} 13... Nxf2+ {[%clk
0:02:27.9]} 14. Rxf2 {[%clk 0:02:48.8]} 14... Bxf2 {[%clk 0:02:28.8]} 15. Bf4
{[%clk 0:02:47.5]} 15... e5 {[%clk 0:02:28.7]} 16. Bg5 {[%clk 0:02:46.4]} 16...
dxe4 {[%clk 0:02:14.9]} 17. dxe4 {[%clk 0:02:39.8]} 17... Bxg3 {[%clk
0:02:08.8]} 18. Qf1 {[%clk 0:02:37.5]} 18... Bf4 {[%clk 0:02:06]} 19. Bxf6
{[%clk 0:02:37.4]} 19... gxf6 {[%clk 0:02:05.1]} 20. Nc5 {[%clk 0:02:35.1]}
20... O-O-O {[%clk 0:01:58.5]} 0-1

[Event "Early-Titled-Tuesday-Blitz-November-28-2023"]
[Site "Chess.com"]
[Date "2023.11.28"]
[Round "7"]
[White "JSPrepz"]
[Black "SashaKuzhilniy"]
[Result "1-0"]
[WhiteElo "2843"]
[BlackElo "2630"]
[TimeControl "180+1"]
[EndTime "9:20:40 PST"]
[Termination "JSPrepz won by resignation"]

1. e4 {[%clk 0:03:00.9]} 1... e5 {[%clk 0:02:59.6]} 2. Nf3 {[%clk 0:03:00.9]}
2... Nc6 {[%clk 0:02:59.8]} 3. Nc3 {[%clk 0:03:00.6]} 3... Nf6 {[%clk 0:03:00]}
4. a3 {[%clk 0:03:01.3]} 4... d5 {[%clk 0:02:58.9]} 5. Bb5 {[%clk 0:03:01.3]}
5... Nxe4 {[%clk 0:02:49.7]} 6. Nxe5 {[%clk 0:03:00.8]} 6... Qd6 {[%clk
0:02:42.8]} 7. d4 {[%clk 0:02:58.3]} 7... Nxc3 {[%clk 0:02:40]} 8. bxc3 {[%clk
0:02:58.1]} 8... Be7 {[%clk 0:02:14.3]} 9. Bf4 {[%clk 0:02:57.5]} 9... Qf6
{[%clk 0:02:14.4]} 10. Bg3 {[%clk 0:02:38.1]} 10... O-O {[%clk 0:02:13.8]} 11.
O-O {[%clk 0:02:38.1]} 11... Bd6 {[%clk 0:02:07.5]} 12. Nxc6 {[%clk 0:02:31.5]}
12... Bxg3 {[%clk 0:02:06.6]} 13. fxg3 {[%clk 0:02:30.8]} 13... Qh6 {[%clk
0:01:57.1]} 14. Ne7+ {[%clk 0:02:21.7]} 14... Kh8 {[%clk 0:01:57.2]} 15. Nxc8
{[%clk 0:02:22.1]} 15... Raxc8 {[%clk 0:01:57]} 16. Bd3 {[%clk 0:02:21.7]} 16...
Rce8 {[%clk 0:01:56.4]} 17. Qf3 {[%clk 0:02:21.8]} 17... c6 {[%clk 0:01:56]} 18.
Rae1 {[%clk 0:02:21.6]} 18... f6 {[%clk 0:01:53.2]} 19. Qf2 {[%clk 0:02:19.8]}
1-0

[Event "Early-Titled-Tuesday-Blitz-November-28-2023"]
[Site "Chess.com"]
[Date "2023.11.28"]
[Round "7"]
[White "Willi_Skibbe"]
[Black "mortngabriel"]
[Result "0-1"]
[WhiteElo "2277"]
[BlackElo "2494"]
[TimeControl "180+1"]
[EndTime "9:20:56 PST"]
[Termination "mortngabriel won by resignation"]

1. d4 {[%clk 0:03:00.9]} 1... d5 {[%clk 0:03:00.1]} 2. Bf4 {[%clk 0:02:52.4]}
2... Nf6 {[%clk 0:02:58.8]} 3. e3 {[%clk 0:02:51.7]} 3... e6 {[%clk 0:02:57.6]}
4. Nd2 {[%clk 0:02:50.8]} 4... c5 {[%clk 0:02:56.5]} 5. c3 {[%clk 0:02:49.6]}
5... Nc6 {[%clk 0:02:57]} 6. Ngf3 {[%clk 0:02:48.8]} 6... cxd4 {[%clk
0:02:56.8]} 7. exd4 {[%clk 0:02:48.7]} 7... Nh5 {[%clk 0:02:57.1]} 8. Bg5 {[%clk
0:02:45.3]} 8... f6 {[%clk 0:02:56.7]} 9. Be3 {[%clk 0:02:44.9]} 9... Bd6 {[%clk
0:02:56.3]} 10. g3 {[%clk 0:02:40.6]} 10... O-O {[%clk 0:02:49.8]} 11. Bd3
{[%clk 0:02:39.2]} 11... Qe8 {[%clk 0:02:42.2]} 12. Qe2 {[%clk 0:02:36]} 12...
e5 {[%clk 0:02:37.7]} 13. dxe5 {[%clk 0:02:28.9]} 13... fxe5 {[%clk 0:02:37.8]}
14. Ng5 {[%clk 0:02:22.8]} 14... e4 {[%clk 0:02:19.6]} 15. Ndxe4 {[%clk
0:01:50.9]} 15... dxe4 {[%clk 0:02:19.2]} 16. Bc4+ {[%clk 0:01:51.5]} 16... Kh8
{[%clk 0:02:18.8]} 17. Bf7 {[%clk 0:01:51.9]} 17... Rxf7 {[%clk 0:02:15.4]} 18.
Qxh5 {[%clk 0:01:51.4]} 18... g6 {[%clk 0:02:14.9]} 19. Nxf7+ {[%clk 0:01:51.2]}
19... Qxf7 {[%clk 0:02:15.8]} 20. Bd4+ {[%clk 0:01:42.4]} 20... Nxd4 {[%clk
0:02:11]} 21. cxd4 {[%clk 0:01:40.6]} 21... gxh5 {[%clk 0:02:10.5]} 0-1

[Event "Early-Titled-Tuesday-Blitz-November-28-2023"]
[Site "Chess.com"]
[Date "2023.11.28"]
[Round "7"]
[White "Atousa1"]
[Black "grandemestregringo"]
[Result "0-1"]
[WhiteElo "2459"]
[BlackElo "2612"]
[TimeControl "180+1"]
[EndTime "9:21:49 PST"]
[Termination "grandemestregringo won by checkmate"]

1. e4 {[%clk 0:02:54.7]} 1... e5 {[%clk 0:02:59.1]} 2. Nf3 {[%clk 0:02:52.5]}
2... Nc6 {[%clk 0:02:58.8]} 3. Bb5 {[%clk 0:02:51.5]} 3... f5 {[%clk 0:02:57.3]}
4. Nc3 {[%clk 0:02:48.8]} 4... fxe4 {[%clk 0:02:56.7]} 5. Nxe4 {[%clk
0:02:48.6]} 5... Nf6 {[%clk 0:02:56.8]} 6. Qe2 {[%clk 0:02:45.8]} 6... d5 {[%clk
0:02:56.8]} 7. Nxf6+ {[%clk 0:02:45.4]} 7... gxf6 {[%clk 0:02:57.1]} 8. d4
{[%clk 0:02:36.6]} 8... e4 {[%clk 0:02:55.4]} 9. Bf4 {[%clk 0:02:29.3]} 9... Bd6
{[%clk 0:02:32.5]} 10. Bxd6 {[%clk 0:02:25.7]} 10... Qxd6 {[%clk 0:02:31.5]} 11.
O-O-O {[%clk 0:02:25.3]} 11... O-O {[%clk 0:02:29.3]} 12. Nh4 {[%clk 0:02:24.1]}
12... Qf4+ {[%clk 0:02:29.2]} 13. Kb1 {[%clk 0:02:13.5]} 13... Qxh4 {[%clk
0:02:27.8]} 14. f3 {[%clk 0:02:13]} 14... exf3 {[%clk 0:02:18.7]} 15. gxf3
{[%clk 0:02:11.1]} 15... Bf5 {[%clk 0:02:02]} 16. Rhg1+ {[%clk 0:02:06.8]} 16...
Kh8 {[%clk 0:02:01.8]} 17. Bxc6 {[%clk 0:01:59]} 17... bxc6 {[%clk 0:02:01.6]}
18. Qe7 {[%clk 0:01:59.1]} 18... Bg6 {[%clk 0:02:00.3]} 19. Qxc7 {[%clk
0:01:54.4]} 19... Rab8 {[%clk 0:01:56.5]} 20. b3 {[%clk 0:01:35.9]} 20... Qf2
{[%clk 0:01:51]} 21. Rc1 {[%clk 0:01:11.5]} 21... Bxc2+ {[%clk 0:01:46.1]} 22.
Ka1 {[%clk 0:01:06.9]} 22... Qxd4# {[%clk 0:01:45.5]} 0-1

[Event "Early-Titled-Tuesday-Blitz-November-28-2023"]
[Site "Chess.com"]
[Date "2023.11.28"]
[Round "7"]
[White "LimeInTheCoconut"]
[Black "PawnEatingZombie"]
[Result "1-0"]
[WhiteElo "2394"]
[BlackElo "2179"]
[TimeControl "180+1"]
[EndTime "9:22:23 PST"]
[Termination "LimeInTheCoconut won by resignation"]

1. e4 {[%clk 0:03:00.9]} 1... e6 {[%clk 0:02:59.7]} 2. d4 {[%clk 0:02:59.8]}
2... d5 {[%clk 0:02:59.4]} 3. Nc3 {[%clk 0:03:00.4]} 3... Nf6 {[%clk 0:02:58.4]}
4. Bg5 {[%clk 0:03:00.1]} 4... h6 {[%clk 0:02:58.1]} 5. Bxf6 {[%clk 0:02:58.8]}
5... Qxf6 {[%clk 0:02:57.8]} 6. exd5 {[%clk 0:02:58.7]} 6... Bb4 {[%clk
0:02:57.8]} 7. dxe6 {[%clk 0:02:39.9]} 7... Bxe6 {[%clk 0:02:54.2]} 8. Nf3
{[%clk 0:02:33.9]} 8... O-O {[%clk 0:02:49.8]} 9. Be2 {[%clk 0:02:31.5]} 9... c5
{[%clk 0:02:33.4]} 10. O-O {[%clk 0:02:28.2]} 10... Rd8 {[%clk 0:02:33.2]} 11.
Ne4 {[%clk 0:02:18.4]} 11... Qf4 {[%clk 0:02:25]} 12. a3 {[%clk 0:02:15.8]}
12... Qxe4 {[%clk 0:02:18]} 13. axb4 {[%clk 0:02:15.4]} 13... cxd4 {[%clk
0:02:12.4]} 14. Bd3 {[%clk 0:02:10.1]} 14... Qf4 {[%clk 0:02:06.1]} 15. Re1
{[%clk 0:02:08.1]} 15... Nc6 {[%clk 0:01:58.6]} 16. b5 {[%clk 0:02:05]} 16...
Nb4 {[%clk 0:01:55.7]} 17. Re4 {[%clk 0:02:04.4]} 17... Qf6 {[%clk 0:01:55]} 18.
Rxd4 {[%clk 0:01:47.2]} 18... Rxd4 {[%clk 0:01:42.9]} 19. Nxd4 {[%clk
0:01:46.1]} 19... Bd5 {[%clk 0:01:33]} 20. Bf1 {[%clk 0:01:36.1]} 20... Qg6
{[%clk 0:01:24.1]} 21. c3 {[%clk 0:01:31.9]} 21... Na2 {[%clk 0:01:06.1]} 22. c4
{[%clk 0:01:19.2]} 1-0